[Event "Titled Tuesday Blitz May 25 2021"]
[White "Le, Tuan Minh"]
[Black "Djordjevic, Vuk"]
[WhiteFideId "12401153"]
[BlackFideId "902098"]
[WhiteElo "2450"]
[BlackElo "2463"]
[Result "1-0"]
[Round "08"]
[TimeControl "180+1"]
[Date "2021.05.25"]
[WhiteClock "0:00:08"]
[BlackClock "0:00:01"]

1. d4 {[%clk 0:03:00]}  e6 {[%clk 0:02:59]} 2. Nf3 {[%clk 0:03:00]}  Nf6 {[%clk 0:02:57]} 3. Bf4 {[%clk 0:03:01]}  d5 {[%clk 0:02:57]} 4. e3 {[%clk 0:03:01]}  Bd6 {[%clk 0:02:58]} 5. Nbd2 {[%clk 0:03:01]}  Bxf4 {[%clk 0:02:55]} 6. exf4 {[%clk 0:03:02]}  Qd6 {[%clk 0:02:56]} 7. g3 {[%clk 0:03:01]}  O-O {[%clk 0:02:56]} 8. c3 {[%clk 0:03:01]}  b6 {[%clk 0:02:56]} 9. Bd3 {[%clk 0:03:01]}  c5 {[%clk 0:02:56]} 10. Qe2 {[%clk 0:03:00]}  a5 {[%clk 0:02:52]} 11. O-O {[%clk 0:03:00]}  Ba6 {[%clk 0:02:49]} 12. Bxa6 {[%clk 0:03:01]}  Rxa6 {[%clk 0:02:48]} 13. Rad1 {[%clk 0:03:01]}  Ra7 {[%clk 0:02:34]} 14. Rfe1 {[%clk 0:03:00]}  Nc6 {[%clk 0:02:29]} 15. Nf1 {[%clk 0:02:56]}  Ne4 {[%clk 0:01:55]} 16. Ne3 {[%clk 0:02:50]}  cxd4 {[%clk 0:01:41]} 17. Nxd4 {[%clk 0:02:47]}  Nxd4 {[%clk 0:01:41]} 18. Rxd4 {[%clk 0:02:48]}  Qc5 {[%clk 0:01:40]} 19. Red1 {[%clk 0:02:35]}  b5 {[%clk 0:01:27]} 20. a4 {[%clk 0:02:00]}  bxa4 {[%clk 0:01:22]} 21. c4 {[%clk 0:01:43]}  Nf6 {[%clk 0:00:41]} 22. cxd5 {[%clk 0:01:42]}  exd5 {[%clk 0:00:40]} 23. Rxa4 {[%clk 0:01:29]}  Re8 {[%clk 0:00:35]} 24. Qd2 {[%clk 0:01:20]}  Qb5 {[%clk 0:00:31]} 25. Rda1 {[%clk 0:01:15]}  Ne4 {[%clk 0:00:22]} 26. Qxd5 {[%clk 0:01:08]}  Qxd5 {[%clk 0:00:13]} 27. Nxd5 {[%clk 0:01:09]}  Rb7 {[%clk 0:00:11]} 28. Re1 {[%clk 0:00:45]}  f5 {[%clk 0:00:07]} 29. f3 {[%clk 0:00:36]}  Nd6 {[%clk 0:00:02]} 30. Rxe8+ {[%clk 0:00:36]}  Nxe8 {[%clk 0:00:02]} 31. Rxa5 {[%clk 0:00:37]}  Rxb2 {[%clk 0:00:03]} 32. Ne7+ {[%clk 0:00:37]}  Kf7 {[%clk 0:00:03]} 33. Nxf5 {[%clk 0:00:38]}  Rb7 {[%clk 0:00:03]} 34. Kg2 {[%clk 0:00:34]}  Rc7 {[%clk 0:00:03]} 35. g4 {[%clk 0:00:32]}  g6 {[%clk 0:00:03]} 36. Ne3 {[%clk 0:00:28]}  Rd7 {[%clk 0:00:02]} 37. Kg3 {[%clk 0:00:28]}  Rd3 {[%clk 0:00:02]} 38. Nc4 {[%clk 0:00:28]}  Rd8 {[%clk 0:00:02]} 39. Ra7+ {[%clk 0:00:26]}  Kg8 {[%clk 0:00:02]} 40. Ne5 {[%clk 0:00:22]}  Nf6 {[%clk 0:00:02]} 41. h4 {[%clk 0:00:20]}  Ne8 {[%clk 0:00:02]} 42. Nc6 {[%clk 0:00:19]}  Rd6 {[%clk 0:00:02]} 43. Ne7+ {[%clk 0:00:20]}  Kf8 {[%clk 0:00:02]} 44. f5 {[%clk 0:00:21]}  Rb6 {[%clk 0:00:02]} 45. fxg6 {[%clk 0:00:21]}  hxg6 {[%clk 0:00:02]} 46. Nd5 {[%clk 0:00:21]}  Rd6 {[%clk 0:00:02]} 47. Nf4 {[%clk 0:00:22]}  Kg8 {[%clk 0:00:02]} 48. Re7 {[%clk 0:00:22]}  Kf8 {[%clk 0:00:02]} 49. Re6 {[%clk 0:00:12]}  Rxe6 {[%clk 0:00:03]} 50. Nxe6+ {[%clk 0:00:13]}  Kf7 {[%clk 0:00:03]} 51. Ng5+ {[%clk 0:00:14]}  Kf6 {[%clk 0:00:03]} 52. Kf4 {[%clk 0:00:15]}  Nc7 {[%clk 0:00:03]} 53. Ne4+ {[%clk 0:00:15]}  Kg7 {[%clk 0:00:04]} 54. Ke5 {[%clk 0:00:15]}  Na6 {[%clk 0:00:02]} 55. Ng3 {[%clk 0:00:11]}  Nb4 {[%clk 0:00:02]} 56. h5 {[%clk 0:00:11]}  Nc6+ {[%clk 0:00:01]} 57. Kf4 {[%clk 0:00:11]}  Kf6 {[%clk 0:00:01]} 58. Ne4+ {[%clk 0:00:10]}  Kg7 {[%clk 0:00:01]} 59. hxg6 {[%clk 0:00:10]}  Kxg6 {[%clk 0:00:02]} 60. Nc5 {[%clk 0:00:09]}  Nd4 {[%clk 0:00:02]} 61. Nd3 {[%clk 0:00:09]}  Ne2+ {[%clk 0:00:02]} 62. Ke3 {[%clk 0:00:10]}  Ng3 {[%clk 0:00:01]} 63. Kf2 {[%clk 0:00:07]}  Nh1+ {[%clk 0:00:01]} 64. Kg2 {[%clk 0:00:08]} 1-0


[Site "https://www.chess.com"]

[Event "Titled Tuesday Blitz May 25 2021"]
[White "Madaminov, Mukhiddin"]
[Black "Gabrielian, Artur"]
[WhiteFideId "14210703"]
[BlackFideId "4131002"]
[WhiteElo "2646"]
[BlackElo "2770"]
[Result "1/2-1/2"]
[Round "08"]
[TimeControl "180+1"]
[Date "2021.05.25"]
[WhiteClock "0:00:08"]
[BlackClock "0:00:09"]

1. e4 {[%clk 0:03:00]}  e5 {[%clk 0:02:58]} 2. Nf3 {[%clk 0:03:00]}  Nc6 {[%clk 0:02:59]} 3. Bb5 {[%clk 0:03:00]}  g6 {[%clk 0:02:59]} 4. O-O {[%clk 0:02:58]}  Bg7 {[%clk 0:02:57]} 5. c3 {[%clk 0:02:58]}  a6 {[%clk 0:02:58]} 6. Ba4 {[%clk 0:02:57]}  d6 {[%clk 0:02:58]} 7. d4 {[%clk 0:02:57]}  Bd7 {[%clk 0:02:59]} 8. h3 {[%clk 0:02:57]}  h6 {[%clk 0:02:58]} 9. Re1 {[%clk 0:02:56]}  Nf6 {[%clk 0:02:58]} 10. Nbd2 {[%clk 0:02:49]}  O-O {[%clk 0:02:52]} 11. Nf1 {[%clk 0:02:48]}  b5 {[%clk 0:02:30]} 12. Bc2 {[%clk 0:02:47]}  exd4 {[%clk 0:02:27]} 13. cxd4 {[%clk 0:02:46]}  Nb4 {[%clk 0:02:27]} 14. Bb1 {[%clk 0:02:45]}  c5 {[%clk 0:02:27]} 15. Bf4 {[%clk 0:02:43]}  Ne8 {[%clk 0:02:10]} 16. Qd2 {[%clk 0:02:41]}  Nc6 {[%clk 0:02:06]} 17. Bxh6 {[%clk 0:02:39]}  Nxd4 {[%clk 0:01:53]} 18. Nxd4 {[%clk 0:02:37]}  Bxd4 {[%clk 0:01:53]} 19. Bxf8 {[%clk 0:02:25]}  Kxf8 {[%clk 0:01:53]} 20. Ne3 {[%clk 0:02:24]}  Qf6 {[%clk 0:01:53]} 21. Nd5 {[%clk 0:02:22]}  Qe5 {[%clk 0:01:42]} 22. Nb6 {[%clk 0:01:59]}  Rd8 {[%clk 0:01:41]} 23. Nxd7+ {[%clk 0:01:59]}  Rxd7 {[%clk 0:01:41]} 24. Re2 {[%clk 0:02:00]}  Nf6 {[%clk 0:01:38]} 25. a4 {[%clk 0:01:59]}  b4 {[%clk 0:01:38]} 26. Bd3 {[%clk 0:01:52]}  a5 {[%clk 0:01:37]} 27. Rae1 {[%clk 0:01:46]}  Nh5 {[%clk 0:01:35]} 28. Qh6+ {[%clk 0:01:45]}  Kg8 {[%clk 0:01:32]} 29. Bc4 {[%clk 0:01:45]}  Nf4 {[%clk 0:01:19]} 30. g3 {[%clk 0:01:25]}  Nxe2+ {[%clk 0:01:18]} 31. Rxe2 {[%clk 0:01:26]}  Qxg3+ {[%clk 0:01:16]} 32. Kf1 {[%clk 0:01:27]}  Qe5 {[%clk 0:00:58]} 33. Qxg6+ {[%clk 0:01:26]}  Kf8 {[%clk 0:00:59]} 34. Qh6+ {[%clk 0:01:26]}  Qg7 {[%clk 0:00:54]} 35. Qxg7+ {[%clk 0:01:24]}  Kxg7 {[%clk 0:00:54]} 36. f4 {[%clk 0:01:25]}  Kf6 {[%clk 0:00:53]} 37. b3 {[%clk 0:01:24]}  Rd8 {[%clk 0:00:53]} 38. Kg2 {[%clk 0:01:20]}  Rg8+ {[%clk 0:00:50]} 39. Kf3 {[%clk 0:01:19]}  Rh8 {[%clk 0:00:46]} 40. Rh2 {[%clk 0:01:19]}  Kg7 {[%clk 0:00:20]} 41. h4 {[%clk 0:01:19]}  Kh6 {[%clk 0:00:19]} 42. Bxf7 {[%clk 0:01:19]}  Rf8 {[%clk 0:00:19]} 43. Bd5 {[%clk 0:01:13]}  Be5 {[%clk 0:00:19]} 44. Ke2 {[%clk 0:01:09]}  Rxf4 {[%clk 0:00:18]} 45. Rh1 {[%clk 0:00:42]}  c4 {[%clk 0:00:17]} 46. Bxc4 {[%clk 0:00:36]}  Rxe4+ {[%clk 0:00:17]} 47. Kd3 {[%clk 0:00:35]}  Rd4+ {[%clk 0:00:17]} 48. Ke3 {[%clk 0:00:36]}  Rg4 {[%clk 0:00:14]} 49. Be6 {[%clk 0:00:32]}  Rf4 {[%clk 0:00:12]} 50. h5 {[%clk 0:00:27]}  Rf6 {[%clk 0:00:12]} 51. Bd5 {[%clk 0:00:23]}  Rf4 {[%clk 0:00:12]} 52. Bf3 {[%clk 0:00:22]}  Rf6 {[%clk 0:00:09]} 53. Ke2 {[%clk 0:00:19]}  Bf4 {[%clk 0:00:08]} 54. Bg4 {[%clk 0:00:16]}  d5 {[%clk 0:00:09]} 55. Rd1 {[%clk 0:00:16]}  Kg5 {[%clk 0:00:09]} 56. Bf3 {[%clk 0:00:14]}  Re6+ {[%clk 0:00:09]} 57. Kf1 {[%clk 0:00:13]}  Kh4 {[%clk 0:00:09]} 58. Rxd5 {[%clk 0:00:13]}  Kg3 {[%clk 0:00:09]} 59. Be2 {[%clk 0:00:11]}  Be3 {[%clk 0:00:09]} 60. Ke1 {[%clk 0:00:10]}  Rf6 {[%clk 0:00:08]} 61. Kd1 {[%clk 0:00:10]}  Rf4 {[%clk 0:00:07]} 62. Kc2 {[%clk 0:00:09]}  Rh4 {[%clk 0:00:06]} 63. Kd3 {[%clk 0:00:08]}  Bc1 {[%clk 0:00:06]} 64. Rxa5 {[%clk 0:00:08]}  Kf2 {[%clk 0:00:06]} 65. Rf5+ {[%clk 0:00:08]}  Kg2 {[%clk 0:00:06]} 66. a5 {[%clk 0:00:08]}  Rh3+ {[%clk 0:00:07]} 67. Kc4 {[%clk 0:00:08]}  Rc3+ {[%clk 0:00:06]} 68. Kxb4 {[%clk 0:00:08]}  Bd2 {[%clk 0:00:07]} 69. Ka4 {[%clk 0:00:07]}  Rc2 {[%clk 0:00:06]} 70. b4 {[%clk 0:00:07]}  Rb2 {[%clk 0:00:06]} 71. Rb5 {[%clk 0:00:06]}  Kf2 {[%clk 0:00:05]} 72. Bc4 {[%clk 0:00:05]}  Ke3 {[%clk 0:00:06]} 73. a6 {[%clk 0:00:05]}  Kd4 {[%clk 0:00:06]} 74. Bb3 {[%clk 0:00:04]}  Rb1 {[%clk 0:00:06]} 75. Ka5 {[%clk 0:00:04]}  Be3 {[%clk 0:00:05]} 76. a7 {[%clk 0:00:04]}  Ra1+ {[%clk 0:00:05]} 77. Kb6 {[%clk 0:00:05]}  Kc3+ {[%clk 0:00:06]} 78. Rc5+ {[%clk 0:00:04]}  Kxb4 {[%clk 0:00:06]} 79. Kb7 {[%clk 0:00:02]}  Bxc5 {[%clk 0:00:06]} 80. a8=Q {[%clk 0:00:03]}  Rxa8 {[%clk 0:00:06]} 81. Kxa8 {[%clk 0:00:03]}  Kxb3 {[%clk 0:00:06]} 82. Kb7 {[%clk 0:00:04]}  Bd4 {[%clk 0:00:07]} 83. Kc6 {[%clk 0:00:04]}  Kc3 {[%clk 0:00:07]} 84. Kd5 {[%clk 0:00:05]}  Kd3 {[%clk 0:00:08]} 85. Ke6 {[%clk 0:00:06]}  Ke4 {[%clk 0:00:08]} 86. h6 {[%clk 0:00:06]}  Be5 {[%clk 0:00:08]} 87. h7 {[%clk 0:00:06]}  Bd4 {[%clk 0:00:08]} 88. Kf7 {[%clk 0:00:07]}  Kf5 {[%clk 0:00:08]} 89. Kg8 {[%clk 0:00:07]}  Kg6 {[%clk 0:00:09]} 90. h8=Q {[%clk 0:00:08]}  Bxh8 {[%clk 0:00:09]} 1/2-1/2


[Site "https://www.chess.com"]

[Event "Titled Tuesday Blitz May 25 2021"]
[White "Maksimenko, Viktor"]
[Black "Dobre, Claudiu-Cristian"]
[WhiteFideId "13710478"]
[BlackFideId "1211854"]
[WhiteElo "2269"]
[BlackElo "2230"]
[Result "0-1"]
[Round "08"]
[TimeControl "180+1"]
[Date "2021.05.25"]
[WhiteClock "0:00:02"]
[BlackClock "0:00:16"]

1. d4 {[%clk 0:03:00]}  d5 {[%clk 0:02:57]} 2. c4 {[%clk 0:03:00]}  c6 {[%clk 0:02:57]} 3. Nf3 {[%clk 0:03:00]}  Nf6 {[%clk 0:02:57]} 4. Nbd2 {[%clk 0:03:00]}  Bf5 {[%clk 0:02:50]} 5. Qb3 {[%clk 0:02:58]}  Qb6 {[%clk 0:02:49]} 6. c5 {[%clk 0:02:55]}  Qxb3 {[%clk 0:02:49]} 7. axb3 {[%clk 0:02:56]}  Na6 {[%clk 0:02:47]} 8. Ra4 {[%clk 0:02:47]}  e6 {[%clk 0:02:19]} 9. Nh4 {[%clk 0:02:39]}  Bc2 {[%clk 0:02:16]} 10. Ra3 {[%clk 0:02:14]}  Nc7 {[%clk 0:02:09]} 11. e3 {[%clk 0:02:02]}  e5 {[%clk 0:02:04]} 12. b4 {[%clk 0:01:45]}  exd4 {[%clk 0:01:53]} 13. exd4 {[%clk 0:01:40]}  Ne6 {[%clk 0:01:48]} 14. Nhf3 {[%clk 0:01:33]}  g6 {[%clk 0:01:36]} 15. Nb3 {[%clk 0:01:28]}  Bxb3 {[%clk 0:01:35]} 16. Rxb3 {[%clk 0:01:27]}  a6 {[%clk 0:01:34]} 17. Be3 {[%clk 0:01:25]}  Bg7 {[%clk 0:01:29]} 18. Ra3 {[%clk 0:01:14]}  O-O {[%clk 0:01:28]} 19. Be2 {[%clk 0:01:02]}  Nd7 {[%clk 0:01:27]} 20. Kd2 {[%clk 0:00:50]}  f5 {[%clk 0:01:25]} 21. Kd3 {[%clk 0:00:46]}  Rae8 {[%clk 0:01:11]} 22. Raa1 {[%clk 0:00:39]}  f4 {[%clk 0:01:09]} 23. Bd2 {[%clk 0:00:33]}  Nxd4 {[%clk 0:01:06]} 24. Nxd4 {[%clk 0:00:34]}  Bxd4 {[%clk 0:01:05]} 25. Bg4 {[%clk 0:00:34]}  Ne5+ {[%clk 0:00:59]} 26. Kxd4 {[%clk 0:00:34]}  Nxg4 {[%clk 0:00:59]} 27. f3 {[%clk 0:00:26]}  Ne3 {[%clk 0:00:55]} 28. Bxe3 {[%clk 0:00:13]}  Rxe3 {[%clk 0:00:53]} 29. Rhe1 {[%clk 0:00:13]}  Rfe8 {[%clk 0:00:52]} 30. Rxe3 {[%clk 0:00:12]}  Rxe3 {[%clk 0:00:51]} 31. Ra3 {[%clk 0:00:12]}  Re2 {[%clk 0:00:48]} 32. g3 {[%clk 0:00:11]}  fxg3 {[%clk 0:00:47]} 33. hxg3 {[%clk 0:00:12]}  Rxb2 {[%clk 0:00:46]} 34. Ke5 {[%clk 0:00:12]}  Kf7 {[%clk 0:00:27]} 35. g4 {[%clk 0:00:12]}  Rxb4 {[%clk 0:00:28]} 36. Re3 {[%clk 0:00:10]}  h6 {[%clk 0:00:20]} 37. Kd6 {[%clk 0:00:08]}  Kf6 {[%clk 0:00:20]} 38. Re6+ {[%clk 0:00:06]}  Kg5 {[%clk 0:00:20]} 39. Re5+ {[%clk 0:00:04]}  Kf4 {[%clk 0:00:19]} 40. Re6 {[%clk 0:00:05]}  Kxf3 {[%clk 0:00:20]} 41. Rxg6 {[%clk 0:00:05]}  Rxg4 {[%clk 0:00:20]} 42. Rxh6 {[%clk 0:00:05]}  Rb4 {[%clk 0:00:20]} 43. Kc7 {[%clk 0:00:05]}  Ke3 {[%clk 0:00:20]} 44. Rh3+ {[%clk 0:00:05]}  Kd2 {[%clk 0:00:20]} 45. Rh4 {[%clk 0:00:04]}  Kc3 {[%clk 0:00:19]} 46. Rh3+ {[%clk 0:00:04]}  Kc4 {[%clk 0:00:19]} 47. Kd6 {[%clk 0:00:04]}  Kb5 {[%clk 0:00:19]} 48. Rh1 {[%clk 0:00:03]}  a5 {[%clk 0:00:19]} 49. Rh7 {[%clk 0:00:03]}  Ka6 {[%clk 0:00:17]} 50. Kc7 {[%clk 0:00:03]}  Rb5 {[%clk 0:00:16]} 51. Kd6 {[%clk 0:00:02]}  a4 {[%clk 0:00:16]} 52. Rh8 {[%clk 0:00:03]}  Ka5 {[%clk 0:00:16]} 53. Ra8+ {[%clk 0:00:02]}  Kb4 {[%clk 0:00:16]} 54. Kc7 {[%clk 0:00:02]}  a3 {[%clk 0:00:16]} 55. Kd6 {[%clk 0:00:02]}  Kb3 {[%clk 0:00:16]} 56. Rh8 {[%clk 0:00:01]}  a2 {[%clk 0:00:16]} 57. Rh1 {[%clk 0:00:02]}  Ka3 {[%clk 0:00:16]} 0-1


[Site "https://www.chess.com"]

[Event "Titled Tuesday Blitz May 25 2021"]
[White "Matveev, Vladimir"]
[Black "davigator"]
[WhiteFideId "24130753"]
[WhiteElo "2383"]
[BlackElo "2452"]
[Result "0-1"]
[Round "08"]
[TimeControl "180+1"]
[Date "2021.05.25"]
[WhiteClock "0:00:04"]
[BlackClock "0:00:44"]

1. d4 {[%clk 0:03:00]}  Nf6 {[%clk 0:02:59]} 2. c4 {[%clk 0:03:00]}  e6 {[%clk 0:02:58]} 3. Nf3 {[%clk 0:03:00]}  Bb4+ {[%clk 0:02:58]} 4. Bd2 {[%clk 0:02:57]}  a5 {[%clk 0:02:58]} 5. g3 {[%clk 0:02:57]}  b6 {[%clk 0:02:58]} 6. Bg2 {[%clk 0:02:57]}  Ba6 {[%clk 0:02:58]} 7. Ne5 {[%clk 0:02:51]}  c6 {[%clk 0:02:58]} 8. O-O {[%clk 0:02:50]}  O-O {[%clk 0:02:58]} 9. Bf4 {[%clk 0:02:36]}  Be7 {[%clk 0:02:57]} 10. Nd2 {[%clk 0:01:54]}  d5 {[%clk 0:02:57]} 11. Rc1 {[%clk 0:01:54]}  Nfd7 {[%clk 0:02:54]} 12. cxd5 {[%clk 0:01:37]}  cxd5 {[%clk 0:02:51]} 13. Nd3 {[%clk 0:01:21]}  Ra7 {[%clk 0:02:44]} 14. Nf3 {[%clk 0:01:08]}  g5 {[%clk 0:02:31]} 15. Bd2 {[%clk 0:00:51]}  Bf6 {[%clk 0:02:01]} 16. Re1 {[%clk 0:00:45]}  h6 {[%clk 0:01:55]} 17. Qc2 {[%clk 0:00:15]}  Qe7 {[%clk 0:01:42]} 18. Qb1 {[%clk 0:00:14]}  Rd8 {[%clk 0:01:33]} 19. b4 {[%clk 0:00:14]}  Bc4 {[%clk 0:01:29]} 20. b5 {[%clk 0:00:09]}  Qf8 {[%clk 0:01:18]} 21. a4 {[%clk 0:00:09]}  Qg7 {[%clk 0:01:18]} 22. Qb2 {[%clk 0:00:08]}  Nc5 {[%clk 0:01:10]} 23. Qa3 {[%clk 0:00:04]}  Ne4 {[%clk 0:01:06]} 24. Be3 {[%clk 0:00:03]}  Nd7 {[%clk 0:00:57]} 25. Nfe5 {[%clk 0:00:02]}  Nxe5 {[%clk 0:00:57]} 26. Nxe5 {[%clk 0:00:02]}  Bxe5 {[%clk 0:00:56]} 27. dxe5 {[%clk 0:00:03]}  Nc5 {[%clk 0:00:49]} 28. Bxc5 {[%clk 0:00:02]}  bxc5 {[%clk 0:00:49]} 29. Qxc5 {[%clk 0:00:03]}  Rad7 {[%clk 0:00:47]} 30. Rxc4 {[%clk 0:00:03]}  dxc4 {[%clk 0:00:46]} 31. b6 {[%clk 0:00:04]}  Qf8 {[%clk 0:00:45]} 32. b7 {[%clk 0:00:04]}  Qxc5 {[%clk 0:00:44]} 0-1


[Site "https://www.chess.com"]

[Event "Titled Tuesday Blitz May 25 2021"]
[White "Mirzoev, Azer"]
[Black "Yoo, Christopher Woojin"]
[WhiteFideId "13400304"]
[BlackFideId "30909694"]
[WhiteElo "2525"]
[BlackElo "2009"]
[Result "1/2-1/2"]
[Round "08"]
[TimeControl "180+1"]
[Date "2021.05.25"]
[WhiteClock "0:00:27"]
[BlackClock "0:00:06"]

1. d4 {[%clk 0:02:59]}  Nf6 {[%clk 0:02:58]} 2. Nf3 {[%clk 0:02:59]}  e6 {[%clk 0:02:56]} 3. c4 {[%clk 0:02:58]}  d5 {[%clk 0:02:55]} 4. Nc3 {[%clk 0:02:58]}  dxc4 {[%clk 0:02:52]} 5. e3 {[%clk 0:02:53]}  a6 {[%clk 0:02:52]} 6. Bxc4 {[%clk 0:02:54]}  b5 {[%clk 0:02:52]} 7. Be2 {[%clk 0:02:54]}  Bb7 {[%clk 0:02:51]} 8. O-O {[%clk 0:02:55]}  Nbd7 {[%clk 0:02:52]} 9. b3 {[%clk 0:02:49]}  c5 {[%clk 0:02:50]} 10. Bb2 {[%clk 0:02:49]}  Be7 {[%clk 0:02:44]} 11. h3 {[%clk 0:02:49]}  O-O {[%clk 0:02:44]} 12. Rc1 {[%clk 0:02:50]}  Rc8 {[%clk 0:02:43]} 13. Nb1 {[%clk 0:02:43]}  Qb6 {[%clk 0:02:39]} 14. Nbd2 {[%clk 0:02:35]}  Rfd8 {[%clk 0:02:37]} 15. Rc2 {[%clk 0:02:34]}  cxd4 {[%clk 0:02:32]} 16. Bxd4 {[%clk 0:02:31]}  Bc5 {[%clk 0:02:32]} 17. Bxc5 {[%clk 0:02:18]}  Nxc5 {[%clk 0:02:33]} 18. Qb1 {[%clk 0:02:10]}  Nce4 {[%clk 0:02:29]} 19. Rfc1 {[%clk 0:01:48]}  Rxc2 {[%clk 0:02:23]} 20. Rxc2 {[%clk 0:01:44]}  b4 {[%clk 0:02:08]} 21. Qb2 {[%clk 0:01:28]}  Nc3 {[%clk 0:02:04]} 22. Bf1 {[%clk 0:01:28]}  Nfe4 {[%clk 0:01:56]} 23. Nxe4 {[%clk 0:01:19]}  Bxe4 {[%clk 0:01:57]} 24. Rd2 {[%clk 0:01:19]}  Bxf3 {[%clk 0:01:57]} 25. gxf3 {[%clk 0:01:14]}  a5 {[%clk 0:01:49]} 26. a3 {[%clk 0:01:03]}  g6 {[%clk 0:01:40]} 27. axb4 {[%clk 0:01:03]}  axb4 {[%clk 0:01:38]} 28. Rxd8+ {[%clk 0:01:01]}  Qxd8 {[%clk 0:01:39]} 29. Qc2 {[%clk 0:01:00]}  Qd5 {[%clk 0:01:33]} 30. f4 {[%clk 0:00:58]}  e5 {[%clk 0:01:21]} 31. fxe5 {[%clk 0:00:56]}  Qxe5 {[%clk 0:01:22]} 32. Qd3 {[%clk 0:00:52]}  Qg5+ {[%clk 0:01:20]} 33. Bg2 {[%clk 0:00:49]}  Qa5 {[%clk 0:01:15]} 34. Qc4 {[%clk 0:00:41]}  Qa1+ {[%clk 0:01:02]} 35. Bf1 {[%clk 0:00:37]}  Qa5 {[%clk 0:00:51]} 36. Bg2 {[%clk 0:00:37]}  Qb6 {[%clk 0:00:50]} 37. Bf1 {[%clk 0:00:35]}  h5 {[%clk 0:00:49]} 38. Bg2 {[%clk 0:00:34]}  Kg7 {[%clk 0:00:49]} 39. Bf1 {[%clk 0:00:34]}  Qd6 {[%clk 0:00:46]} 40. Bg2 {[%clk 0:00:33]}  g5 {[%clk 0:00:36]} 41. Bf1 {[%clk 0:00:32]}  h4 {[%clk 0:00:36]} 42. Bg2 {[%clk 0:00:32]}  f5 {[%clk 0:00:31]} 43. Bf1 {[%clk 0:00:31]}  f4 {[%clk 0:00:22]} 44. exf4 {[%clk 0:00:30]}  Qxf4 {[%clk 0:00:22]} 45. Qxf4 {[%clk 0:00:29]}  gxf4 {[%clk 0:00:23]} 46. Kg2 {[%clk 0:00:30]}  Kf6 {[%clk 0:00:23]} 47. Kf3 {[%clk 0:00:30]}  Ke5 {[%clk 0:00:15]} 48. Bd3 {[%clk 0:00:29]}  Nd1 {[%clk 0:00:10]} 49. Bc2 {[%clk 0:00:27]}  Nc3 {[%clk 0:00:10]} 50. Bd3 {[%clk 0:00:27]}  Nd1 {[%clk 0:00:06]} 51. Bc2 {[%clk 0:00:27]}  Nc3 {[%clk 0:00:06]} 52. Bd3 {[%clk 0:00:27]} 1/2-1/2


[Site "https://www.chess.com"]

[Event "Titled Tuesday Blitz May 25 2021"]
[White "Molina, Roberto Junio Brito"]
[Black "Lazavik, Denis"]
[WhiteFideId "2109450"]
[BlackFideId "13515110"]
[WhiteElo "2402"]
[BlackElo "2436"]
[Result "0-1"]
[Round "08"]
[TimeControl "180+1"]
[Date "2021.05.25"]
[WhiteClock "0:00:02"]
[BlackClock "0:00:04"]

1. d4 {[%clk 0:03:00]}  Nf6 {[%clk 0:02:59]} 2. c4 {[%clk 0:02:59]}  e6 {[%clk 0:02:59]} 3. Nc3 {[%clk 0:02:56]}  Bb4 {[%clk 0:02:59]} 4. Qc2 {[%clk 0:02:56]}  O-O {[%clk 0:02:58]} 5. a3 {[%clk 0:02:55]}  Bxc3+ {[%clk 0:02:58]} 6. Qxc3 {[%clk 0:02:56]}  d5 {[%clk 0:02:58]} 7. Bg5 {[%clk 0:02:55]}  dxc4 {[%clk 0:02:55]} 8. Qxc4 {[%clk 0:02:56]}  b6 {[%clk 0:02:55]} 9. Nf3 {[%clk 0:02:54]}  Bb7 {[%clk 0:02:50]} 10. e3 {[%clk 0:02:49]}  Nbd7 {[%clk 0:02:47]} 11. Be2 {[%clk 0:02:47]}  h6 {[%clk 0:02:45]} 12. Bh4 {[%clk 0:02:45]}  c5 {[%clk 0:02:45]} 13. O-O {[%clk 0:02:44]}  Qe7 {[%clk 0:02:38]} 14. Rac1 {[%clk 0:02:40]}  g5 {[%clk 0:02:29]} 15. Bg3 {[%clk 0:02:39]}  Ne4 {[%clk 0:02:30]} 16. Rfd1 {[%clk 0:02:36]}  Rfd8 {[%clk 0:02:19]} 17. Qa4 {[%clk 0:02:22]}  Ndf6 {[%clk 0:02:09]} 18. Ne5 {[%clk 0:02:08]}  cxd4 {[%clk 0:02:01]} 19. exd4 {[%clk 0:02:09]}  a6 {[%clk 0:01:40]} 20. Qb3 {[%clk 0:01:49]}  Bd5 {[%clk 0:01:22]} 21. Bc4 {[%clk 0:01:32]}  Qb7 {[%clk 0:01:12]} 22. Bxd5 {[%clk 0:01:29]}  Rxd5 {[%clk 0:01:13]} 23. Nc4 {[%clk 0:01:17]}  Nxg3 {[%clk 0:01:04]} 24. hxg3 {[%clk 0:01:13]}  b5 {[%clk 0:00:57]} 25. Ne3 {[%clk 0:01:11]}  Rd7 {[%clk 0:00:56]} 26. Rd3 {[%clk 0:00:55]}  Rad8 {[%clk 0:00:54]} 27. Rcd1 {[%clk 0:00:56]}  g4 {[%clk 0:00:46]} 28. Qb4 {[%clk 0:00:50]}  Qe4 {[%clk 0:00:44]} 29. d5 {[%clk 0:00:32]}  Qxb4 {[%clk 0:00:42]} 30. axb4 {[%clk 0:00:32]}  exd5 {[%clk 0:00:37]} 31. Rd4 {[%clk 0:00:33]}  h5 {[%clk 0:00:36]} 32. Rf4 {[%clk 0:00:33]}  Rd6 {[%clk 0:00:31]} 33. Rdd4 {[%clk 0:00:31]}  Re6 {[%clk 0:00:28]} 34. Kf1 {[%clk 0:00:29]}  Kf8 {[%clk 0:00:24]} 35. Ke2 {[%clk 0:00:26]}  Ke7 {[%clk 0:00:23]} 36. Kd3 {[%clk 0:00:26]}  Re4 {[%clk 0:00:19]} 37. Nxd5+ {[%clk 0:00:17]}  Nxd5 {[%clk 0:00:05]} 38. Rfxe4+ {[%clk 0:00:17]}  Kf6 {[%clk 0:00:06]} 39. Kd2 {[%clk 0:00:14]}  Kf5 {[%clk 0:00:04]} 40. Re3 {[%clk 0:00:11]}  Nxe3 {[%clk 0:00:02]} 41. Rxd8 {[%clk 0:00:10]}  Nxg2 {[%clk 0:00:03]} 42. Ke2 {[%clk 0:00:08]}  h4 {[%clk 0:00:03]} 43. gxh4 {[%clk 0:00:03]}  Nxh4 {[%clk 0:00:04]} 44. Rd6 {[%clk 0:00:03]}  Nf3 {[%clk 0:00:03]} 45. Rxa6 {[%clk 0:00:02]}  Ke4 {[%clk 0:00:04]} 0-1


[Site "https://www.chess.com"]